bitfinex/quotes_ETHUSD_20240621
["timestamp","ask_amount","ask_price","bid_price","bid_amount"]
[1718989568846,0.119593,3497.5,3497.4,5.12482]
[1718989569159,0.119593,3497.5,3497.4,5.866051]
[1718989569795,0.119593,3497.5,3497.4,10.509461]
[1718989570452,3.74,3499.7,3498.5,2.28665]
[1718989570453,2.3075,3499.3,3498.5,2.28665]
[1718989570768,0.49486492,3499.2,3498.6,0.55]
[1718989570896,2.3075,3499.3,3498.6,0.55]
[1718989571126,3.61206752,3499.2,3498.6,0.55]
[1718989571350,0.49485664,3499.1,3498.4,2.83674]
[1718989571552,0.49485664,3499.2,3498.4,3.794522]
[1718989571842,0.49485664,3499.2,3498.4,1.507782]
[1718989572717,2.3075,3499.3,3498.4,1.507782]
[1718989573059,0.4948846,3499.2,3498.4,1.507782]
[1718989573218,0.4948846,3499.1,3498.4,1.507782]
[1718989573427,0.4948846,3499.0,3498.4,1.507782]
[1718989573619,2.3075,3499.3,3498.4,1.507782]
[1718989573820,0.49486565,3499.2,3498.4,0.55]
[1718989574029,2.83825,3499.3,3498.4,0.55]
[1718989574030,0.49486565,3499.1,3498.4,0.55]
[1718989574231,0.49486565,3499.0,3498.4,0.55]
[1718989574436,0.28023657,3499.0,3498.1,0.55]
[1718989574616,0.49486565,3498.9,3498.1,0.55]
[1718989574812,0.49486565,3499.2,3498.2,2.28687]
[1718989575065,0.49486565,3499.2,3498.3,0.55]
[1718989575563,0.49486565,3499.2,3498.3,2.83677]
[1718989575891,0.49487434,3499.1,3498.4,2.3861]
[1718989576154,0.49487434,3499.0,3498.5,0.55]
[1718989576353,2.3075,3499.3,3498.5,2.83668]
[1718989576543,0.49485559,3499.2,3498.5,2.83668]
[1718989576740,0.49485559,3499.1,3498.5,0.55]
[1718989576916,0.49485559,3499.0,3497.8,2.28712]
[1718989577123,2.4531,3499.4,3498.2,2.28688]
[1718989577124,0.49485559,3498.9,3498.2,2.28688]
[1718989577310,0.49485559,3498.8,3498.2,2.28688]
[1718989577534,0.49485559,3499.2,3498.2,2.28688]
[1718989577762,0.49488911,3499.1,3498.1,4.69194]
[1718989577951,0.49488911,3499.0,3498.1,4.69194]
[1718989578144,0.49488911,3498.9,3498.1,4.69194]
[1718989578323,0.49488217,3498.8,3498.2,0.55]
[1718989578526,0.49488217,3498.8,3497.9,0.228712]
[1718989578746,0.49488963,3498.7,3497.9,2.515782]
[1718989578959,0.35947989,3499.0,3497.9,2.28707]
[1718989579216,0.4948915,3498.9,3497.8,2.28714]
[1718989579434,0.4948915,3498.8,3497.7,2.2909]
[1718989579760,0.4948915,3498.7,3497.7,2.2909]
[1718989580078,0.4948915,3498.6,3497.8,0.55]
[1718989580266,0.4948915,3498.9,3497.8,0.55]
[1718989580427,3.06113558,3498.8,3497.8,0.55]
[1718989580755,0.49491855,3498.7,3497.8,0.55]
[1718989581627,0.49490349,3498.6,3497.9,2.28706]
[1718989581829,2.4213,3498.8,3498.0,0.55]
[1718989582153,0.49490295,3498.7,3497.8,2.83714]
[1718989582334,0.49490295,3498.6,3497.8,2.83714]
[1718989582526,0.49490295,3498.5,3497.8,2.83714]
[1718989582724,0.49490295,3498.7,3497.8,1.291531]
[1718989583468,2.4352,3498.6,3496.8,2.3907]
[1718989583792,0.49490295,3498.5,3496.8,4.67848]
[1718989584155,1.03937276,3498.4,3496.8,4.67848]
[1718989584327,0.89185052,3498.3,3496.9,0.69663]
[1718989584658,2.94922068,3498.2,3496.8,2.3907]
[1718989584842,0.49502068,3498.1,3496.8,4.6785]
[1718989585947,0.49502068,3498.1,3496.9,0.55]
[1718989587451,0.49505177,3498.0,3496.9,2.83772]
[1718989587658,0.78997695,3498.0,3496.9,2.83772]
[1718989587854,0.49505184,3497.9,3496.9,0.55]
[1718989588156,0.49505184,3497.8,3496.9,0.55]
[1718989588462,0.49505184,3497.9,3496.9,0.55]
[1718989588663,0.49505184,3497.8,3496.9,0.55]
[1718989588817,0.49505184,3497.9,3496.9,0.55]
[1718989589037,0.49505184,3497.8,3496.6,0.55]
[1718989589230,0.49505184,3497.7,3496.6,1.674736]
[1718989589466,0.49505184,3497.8,3496.6,1.674736]
[1718989589644,0.49505184,3497.7,3496.7,2.28786]
[1718989589840,0.49505184,3497.8,3496.8,1.1750566]
[1718989590168,0.49505184,3497.7,3496.8,1.1750566]
[1718989590325,0.3244177,3497.9,3496.8,3.4628166]
[1718989590534,0.49507853,3497.8,3496.8,3.4628166]
[1718989590850,0.49507853,3497.7,3496.8,3.4628166]
[1718989591049,0.49507853,3497.6,3496.8,3.4628166]
[1718989591236,0.49507853,3497.5,3496.8,2.83776]
[1718989591428,2.4542,3498.2,3496.8,2.83776]
[1718989591629,3.61336005,3498.1,3496.8,2.83776]
[1718989591949,3.61336005,3498.0,3496.8,0.55]
[1718989592273,3.61336005,3498.0,3496.6,1.124736]
[1718989592274,4.22011606,3497.9,3496.7,0.55]
[1718989592445,3.61336005,3497.8,3496.7,0.55]
[1718989592640,3.61336005,3497.7,3496.7,0.55]
[1718989592833,1.53409835,3497.6,3496.7,0.55]
[1718989593158,1.534138,3497.5,3496.7,0.55]
[1718989593362,0.49508963,3497.4,3496.7,0.55]
[1718989593561,0.49508963,3497.3,3496.7,0.55]
[1718989593736,0.49508963,3497.3,3496.8,0.6250646]
[1718989593938,3.0,3498.1,3497.0,2.28767]
[1718989594240,3.61334214,3498.0,3496.9,2.83772]
[1718989594460,3.61334214,3497.9,3497.0,0.57505446]
[1718989594674,3.61334214,3497.8,3497.1,0.55]
[1718989594965,1.53406157,3497.7,3497.1,2.2876]
[1718989595135,1.53411266,3497.6,3497.2,0.60717934]
[1718989595387,3.0,3498.1,3497.3,0.05718047]
[1718989595686,1.53410443,3498.0,3497.4,2.8945286]
[1718989595897,1.53410443,3497.9,3497.4,2.83735]
[1718989596059,0.4950529,3497.9,3497.4,2.83735]
[1718989596417,3.0,3498.4,3497.5,0.56981279]
[1718989596575,3.61281176,3498.3,3497.6,0.55]
[1718989596885,3.61284553,3498.2,3497.6,0.55]
[1718989597179,1.0389038,3498.1,3497.6,0.55]
[1718989597339,1.53388897,3498.0,3497.4,0.55]
[1718989597552,1.53388897,3497.9,3497.1,0.55]
[1718989597764,6.01641888,3497.8,3497.0,0.55]
[1718989597955,1.53415568,3497.7,3497.0,0.55]
[1718989598151,1.53420637,3497.6,3496.9,0.55]
[1718989598360,1.53433484,3497.5,3496.9,0.55]
[1718989598563,2.4034,3497.8,3497.0,0.34628546]
[1718989598780,1.03922149,3497.7,3497.1,0.55]
[1718989599147,1.03922149,3497.7,3497.2,2.28753]
[1718989599379,0.49503286,3497.6,3497.3,0.55]
[1718989599748,2.432,3498.2,3497.1,0.55]
[1718989599964,1.03894275,3498.1,3497.1,1.63760301]
[1718989600842,1.03894275,3498.1,3497.1,0.55]
[1718989601247,1.03894275,3498.1,3496.9,0.55]
[1718989602181,1.03894275,3498.1,3496.9,2.83773]
[1718989602663,1.03894275,3498.1,3496.9,0.55]
[1718989604677,2.4734,3498.0,3496.5,2.015]
[1718989604901,2.4734,3497.8,3496.6,0.2015]
[1718989605182,1.03894275,3497.7,3496.2,2.327]
[1718989605365,1.03894275,3497.7,3496.7,2.28781]
[1718989606190,1.03894275,3497.7,3496.8,2.83778]
[1718989606481,1.03894275,3497.7,3496.8,2.8378]
[1718989606679,1.03894275,3497.7,3496.9,0.512566]
[1718989606975,1.03894275,3497.7,3497.0,0.55]
[1718989608276,1.03894275,3497.7,3497.0,2.8756]
[1718989608709,2.4734,3497.8,3497.0,0.55]
[1718989608857,1.03908613,3497.6,3497.0,0.55]
[1718989609064,1.03908613,3497.5,3496.7,2.83785]
[1718989609292,1.03908613,3497.4,3496.8,0.745133]
[1718989609457,2.4734,3497.8,3496.9,0.55]
[1718989609680,1.03908322,3497.7,3496.9,2.83771]
[1718989609884,1.03908322,3497.7,3496.9,0.55]
[1718989610078,1.03908322,3497.7,3496.9,1.3696433]
[1718989611500,1.03908322,3497.7,3497.1,2.28759]
[1718989611706,1.03908322,3497.7,3497.2,0.55]
[1718989612682,1.03908322,3497.7,3497.1,2.2876]
[1718989612877,1.03908322,3497.7,3497.2,0.60717833]
[1718989613370,1.03908322,3497.7,3497.3,0.05717669]
[1718989613589,2.3527,3498.2,3497.6,2.28727]
[1718989613885,10.29,3498.6,3497.7,0.55]
[1718989613886,1.03894228,3498.1,3497.7,0.55]
[1718989614135,1.03894228,3498.0,3497.7,2.2872]
[1718989614422,2.3527,3498.5,3497.8,0.55]
[1718989614580,1.03495777,3498.4,3497.8,0.55]
[1718989614774,1.03495777,3498.4,3497.9,2.28708]
[1718989614989,5.3527,3498.9,3498.0,0.55]
[1718989615499,2.3527,3498.9,3498.2,2.28688]
[1718989615680,1.90580663,3499.6,3498.3,2.83681]
[1718989615681,2.4969,3499.5,3498.3,2.83681]
[1718989616002,2.4969,3499.5,3498.3,0.55]
[1718989616376,2.4969,3499.5,3498.3,2.83682]
[1718989617017,2.4969,3499.5,3498.4,2.28674]
[1718989617183,2.4969,3499.5,3498.5,0.55]
[1718989617376,0.49487619,3499.4,3498.5,2.83668]
[1718989617585,0.49487619,3499.3,3498.5,2.83668]
[1718989617813,0.49487619,3499.2,3498.7,2.28655]
[1718989618021,0.49487619,3499.1,3498.8,0.56803692]
[1718989618209,0.49487619,3499.0,3498.8,0.56803692]
[1718989618626,0.49487619,3498.9,3498.8,0.56803692]
[1718989618777,0.49487619,3498.9,3498.8,0.55]
[1718989618981,0.49487619,3498.9,3498.8,1.39420087]
[1718989619497,3.0,3499.6,3498.8,1.39420087]
[1718989619714,0.49484342,3499.5,3498.8,0.55]
[1718989619952,0.49484342,3499.4,3498.8,0.55]
[1718989620091,0.49484342,3499.5,3498.8,0.55]
[1718989620516,2.2923,3499.4,3497.7,7.44]
[1718989620700,2.2923,3499.4,3497.1,4.6456]
[1718989620701,2.015,3498.9,3497.1,4.6456]
[1718989621023,2.78714342,3498.8,3497.3,2.28746]
[1718989621209,0.97505776,3498.7,3497.4,0.693306]
[1718989621391,0.49484342,3498.6,3497.4,0.693306]
[1718989621931,0.4949989,3498.5,3497.4,0.693306]
[1718989622230,0.4949989,3498.4,3497.4,0.693306]
[1718989622377,0.49499921,3498.3,3497.4,0.693306]
[1718989622586,2.57399588,3498.2,3497.4,0.693306]
[1718989622792,0.49499921,3498.1,3497.4,0.693306]
[1718989623011,0.49499921,3498.0,3497.5,0.8480826]
[1718989623299,0.47875143,3498.6,3497.5,0.8480826]
[1718989623300,0.4949993,3497.9,3497.5,0.8480826]
[1718989623511,0.47875143,3498.6,3497.5,0.8480826]
[1718989623710,2.57390538,3498.5,3497.5,0.8480826]
[1718989623904,2.57390538,3498.4,3497.5,0.8480826]
[1718989624103,2.57390538,3498.3,3497.5,0.55]
[1718989624428,2.4261,3498.1,3496.6,4.55962]
[1718989624587,2.57390538,3498.0,3496.6,4.55962]
[1718989624921,2.57428591,3497.9,3496.6,4.55962]
[1718989625126,2.57428591,3497.8,3496.8,2.28775]
[1718989625414,2.4261,3498.1,3496.8,2.28775]
[1718989625415,2.57428591,3497.7,3496.8,2.28775]
[1718989625579,2.57429445,3497.6,3496.9,0.684738]
[1718989625771,2.57438078,3497.5,3496.9,0.684738]
[1718989626015,0.49505498,3497.4,3496.9,0.684738]
[1718989626184,0.49505498,3497.4,3496.6,2.2717]
[1718989626185,0.49505498,3498.0,3496.7,2.28781]
[1718989626403,2.07933269,3497.9,3496.6,2.2717]
[1718989626589,0.49505498,3497.8,3497.2,2.28748]
[1718989626788,0.49505498,3497.8,3497.3,0.228748]
[1718989626989,7.29,3498.3,3497.3,0.228748]
[1718989627177,2.57408129,3498.2,3497.3,0.228748]
[1718989627389,2.57408129,3498.1,3497.4,0.55]
[1718989627591,2.57408129,3498.0,3497.4,0.55]
[1718989627797,0.49504537,3497.9,3497.4,0.55]
[1718989628005,2.57423594,3497.8,3496.6,2.2717]
[1718989628214,2.57423594,3497.7,3496.6,4.55962]
[1718989628409,2.57423594,3497.6,3496.6,4.55962]
[1718989628583,2.57423594,3497.5,3496.6,4.55962]
[1718989628785,2.57441629,3497.4,3496.7,0.684767]
[1718989629115,2.57441629,3497.3,3496.3,2.28812]
[1718989629286,2.57441629,3497.2,3496.4,2.28801]
[1718989629480,2.57441629,3497.2,3496.3,2.28812]
[1718989629481,0.49504537,3497.1,3496.3,2.28812]
[1718989630353,0.46704537,3497.1,3496.7,2.28783]
[1718989630629,2.2856,3497.7,3496.7,2.28783]
[1718989630630,2.2856,3497.7,3496.8,1.007583]
[1718989630829,2.07939401,3497.6,3496.8,1.007583]
[1718989631124,2.2856,3497.7,3496.8,1.007583]
[1718989631276,2.07937863,3497.6,3496.8,1.007583]
[1718989631710,2.07937863,3497.6,3496.9,0.5583343]
[1718989631917,2.07937863,3497.6,3497.0,0.55]
[1718989632311,1.93737863,3497.6,3497.0,0.55]
[1718989632509,1.93737863,3497.6,3496.8,0.55]
[1718989633519,1.93737863,3497.6,3495.9,7.44]
[1718989633700,0.42229786,3497.5,3496.0,0.972845]
[1718989633917,0.42229786,3497.5,3495.9,2.28837]
[1718989634645,1.03634684,3497.4,3495.9,2.28838]
[1718989634817,1.03634684,3497.4,3495.8,2.28845]
[1718989635017,1.03634684,3497.4,3495.9,2.28837]
[1718989635435,1.03634684,3497.4,3496.1,2.28821]
[1718989635608,1.61227131,3497.4,3496.2,0.457653]
[1718989635935,1.03634684,3497.3,3496.0,2.28831]
[1718989636138,1.03634684,3497.3,3496.3,0.55]
[1718989636466,1.03634684,3497.3,3496.8,2.28775]
[1718989636730,2.2856,3497.7,3496.9,0.778775]
[1718989636731,1.03634684,3497.2,3496.9,0.778775]
[1718989636934,2.2856,3497.7,3496.9,0.55]
[1718989637238,1.03601198,3497.6,3496.9,0.55]
[1718989637457,1.03601198,3497.6,3496.8,0.55]
[1718989637679,1.03601198,3497.6,3496.7,0.55]
[1718989637831,1.03601198,3497.6,3496.8,0.512584]
[1718989638007,1.03601198,3497.6,3496.9,0.55]
[1718989639462,1.03601198,3497.6,3497.5,2.28734]
[1718989639697,1.90456822,3498.5,3497.5,0.55]
[1718989639943,1.90456822,3498.5,3497.4,2.2874]
[1718989639944,1.0358128,3498.4,3497.4,2.2874]
[1718989640238,1.0358128,3498.4,3497.5,0.55]
[1718989640407,1.53080532,3498.3,3497.4,2.28741]
[1718989640608,1.0358128,3498.2,3497.5,0.55]
[1718989640941,1.53081776,3498.1,3497.5,0.55]
[1718989641121,1.53081776,3498.0,3497.5,1.062494]
[1718989641322,1.0358128,3497.9,3497.5,1.062494]
[1718989641650,1.0358128,3497.8,3497.5,1.062494]
[1718989641804,3.0,3498.5,3497.5,1.062494]
[1718989642006,1.53104555,3498.4,3497.5,1.062494]
[1718989642248,1.53104555,3498.3,3497.6,0.5637374]
[1718989642445,1.53104555,3498.2,3497.6,0.5637374]
[1718989642746,1.03604088,3498.1,3497.5,0.55]
[1718989642974,1.53105062,3498.0,3497.5,0.55]
[1718989643104,1.03604088,3497.9,3497.5,2.83728]
[1718989643307,3.0,3498.5,3497.6,0.512467]
[1718989643550,1.53104897,3498.4,3497.6,0.512467]
[1718989643719,1.53104897,3498.3,3497.6,0.512467]
[1718989643908,1.53104897,3498.2,3497.5,0.55]
[1718989644109,1.53104897,3498.1,3497.5,0.55]
[1718989644347,1.53104897,3498.0,3497.3,2.83746]
[1718989644509,1.03604302,3497.9,3497.3,2.83746]
[1718989644709,1.03604302,3497.8,3497.4,2.28736]
[1718989644911,3.0,3498.5,3497.4,2.28736]
[1718989644912,3.0,3498.5,3497.5,1.062483]
[1718989645122,1.53106179,3498.4,3497.5,3.349813]
[1718989645305,2.4676,3498.6,3497.5,3.349813]
[1718989645306,1.53106179,3498.3,3497.5,3.349813]
[1718989645512,1.53106179,3498.2,3497.5,3.349813]
[1718989645710,1.53105863,3498.1,3497.5,3.349813]
[1718989645906,1.53105863,3498.0,3497.6,0.5637283]
[1718989646159,1.03605452,3497.9,3497.6,0.5637283]
[1718989646449,3.0,3498.5,3497.6,0.5637283]
[1718989646657,1.53103421,3498.4,3497.6,0.5637283]
[1718989646846,1.53103421,3498.3,3497.6,0.5637283]
[1718989647008,1.53103421,3498.2,3497.6,0.5637283]
[1718989647223,1.53103421,3498.1,3497.6,0.5637283]
[1718989647413,1.53103421,3498.0,3497.6,0.5637283]
[1718989647612,1.53103421,3497.9,3497.6,0.04739878]
[1718989647846,3.0,3498.5,3497.6,0.04739878]
[1718989648047,3.0,3498.5,3497.5,3.349813]
[1718989648048,1.53104441,3498.4,3497.5,0.55]
[1718989648267,1.53104441,3498.3,3497.5,0.55]
[1718989648467,1.53104441,3498.2,3497.5,0.55]
[1718989648655,1.03604028,3498.1,3497.5,0.55]
[1718989648959,1.53104623,3498.0,3497.5,0.55]
[1718989649123,0.54676,3498.4,3497.1,2.2876]
[1718989649124,1.53105044,3497.9,3497.2,2.83752]
[1718989649310,1.53105044,3497.8,3497.2,2.83752]
[1718989649512,0.49501001,3497.7,3497.2,2.83752]
[1718989649745,0.601436,3498.3,3497.2,2.83752]
[1718989650025,1.53107406,3498.2,3497.2,2.83752]
[1718989650243,1.53107406,3498.1,3497.2,2.83752]
[1718989650453,1.53107406,3498.0,3497.2,0.55]
[1718989650665,1.53107406,3497.9,3497.2,1.062525]
[1718989650866,1.53107406,3497.8,3497.2,1.062525]
[1718989651013,1.53107406,3497.7,3497.2,0.55]
[1718989651214,1.53107406,3497.7,3497.0,2.28766]
[1718989651215,1.53107406,3497.6,3497.1,0.55]
[1718989651459,0.4950101,3497.5,3497.2,0.05718157]
[1718989651662,0.3601436,3498.2,3497.3,0.55]
[1718989651825,1.53104191,3498.1,3497.3,0.60718067]
[1718989652023,1.78030406,3498.0,3497.3,0.55]
[1718989652260,1.53104191,3497.9,3497.3,0.05718066]
[1718989652478,1.53104191,3497.8,3497.3,0.05718066]
[1718989652636,1.53104191,3497.7,3497.3,2.34460066]
[1718989652964,0.49502922,3497.6,3497.4,0.55]
[1718989653142,0.49502922,3498.2,3497.4,0.55]
[1718989653342,3.11517405,3498.1,3497.4,0.55]
[1718989653537,3.61020327,3498.0,3497.4,0.60717806]
[1718989653747,3.61020327,3497.9,3497.4,0.60717806]
[1718989653966,1.5310714,3497.8,3497.4,0.60717806]
[1718989654285,1.5310714,3497.7,3497.4,0.60717806]
[1718989654427,0.49502922,3497.6,3497.4,0.60717806]
[1718989654627,0.601436,3498.3,3497.4,0.60717806]
[1718989654853,3.61014174,3498.2,3497.4,0.60717806]
[1718989655089,3.61014174,3498.1,3497.4,0.60717806]
[1718989655372,0.601436,3498.3,3497.4,2.89458806]
[1718989655373,3.61014174,3498.0,3497.4,2.89458806]
[1718989655575,1.53106166,3497.9,3497.5,0.51820581]
[1718989655791,1.53106166,3497.8,3497.4,2.83741]
[1718989655978,0.49501906,3497.7,3497.4,2.83741]
[1718989656152,3.0,3498.5,3497.4,2.83741]
[1718989656363,3.61009404,3498.4,3497.4,2.83741]
[1718989656558,3.61009404,3498.3,3497.5,2.28734]
[1718989656757,3.61009404,3498.2,3497.6,0.55]
[1718989657082,3.61009404,3498.1,3497.6,0.55]
[1718989657283,3.61009404,3498.0,3497.6,0.55]
[1718989657467,1.53104458,3497.9,3497.6,0.60717582]
[1718989657661,1.03603281,3497.8,3497.6,2.89440582]
[1718989657843,3.0,3498.5,3497.6,2.89440582]
[1718989657844,0.49500681,3497.7,3497.6,0.83944058]
[1718989658131,0.49500681,3497.7,3497.6,0.55]
[1718989658387,0.4950078,3497.7,3497.6,2.28727]
[1718989658551,0.4950078,3497.7,3497.6,2.83727]
[1718989658751,0.49500754,3497.7,3497.6,2.83727]
[1718989659545,3.0,3498.5,3497.8,2.28712]
[1718989659774,3.60982155,3498.4,3497.9,0.55]
[1718989659962,3.60982155,3498.3,3497.9,0.55]
[1718989660175,1.53095055,3498.2,3497.9,0.55]
[1718989660497,1.53095055,3498.1,3497.9,0.55]
[1718989660670,1.03598127,3498.0,3497.9,0.55]
[1718989660859,1.03598127,3498.0,3497.6,2.28727]
[1718989660860,0.49497558,3498.0,3497.7,0.55]
[1718989661060,1.53105981,3497.9,3497.7,0.55]
[1718989661274,3.0,3498.5,3497.6,2.83728]
[1718989661453,3.609967,3498.4,3497.7,0.3624043]
[1718989661653,3.609967,3498.3,3497.8,0.55]
[1718989661977,3.609967,3498.2,3497.8,0.55]
[1718989662163,1.53105881,3498.1,3497.8,0.55]
[1718989662492,1.03608067,3498.0,3497.8,0.55]
[1718989662797,1.53105177,3497.9,3497.8,0.55]
[1718989663250,1.53105177,3497.9,3496.8,0.512584]
[1718989663456,3.61018497,3497.8,3496.9,1.0207684]
[1718989663672,3.6102235,3497.7,3496.9,3.3084384]
[1718989663882,1.53112391,3497.6,3496.9,3.3084884]
[1718989664067,1.53112391,3497.5,3496.9,3.3084884]
[1718989664289,1.53112391,3497.4,3497.0,0.78513884]
[1718989664485,2.4733,3498.1,3497.0,0.78513884]
[1718989664796,3.61033094,3498.0,3497.0,0.78513884]
[1718989665016,3.61033094,3497.9,3497.3,2.28747]
[1718989665169,3.61033094,3497.8,3497.4,2.755597]
[1718989665504,1.53115197,3497.7,3497.4,2.755597]
[1718989665808,1.53115197,3497.6,3497.5,0.55]
[1718989665961,1.53115197,3497.6,3497.5,5.6839917]
[1718989666157,9.7518,3498.7,3497.7,2.28719]
[1718989666397,3.60984381,3498.6,3497.8,0.55]
[1718989666632,3.60984381,3498.5,3497.8,0.55]
[1718989666913,1.53090878,3498.4,3497.8,0.55]
[1718989667063,3.6097621,3498.3,3497.8,1.11838417]
[1718989667261,2.4618,3498.7,3497.8,2.83713]
[1718989667262,1.03594371,3498.2,3497.8,2.83713]
[1718989667466,1.53090752,3498.1,3497.9,2.28708]
[1718989667782,1.53090752,3498.1,3497.8,0.55]
[1718989667783,2.4618,3498.7,3498.0,0.55]
[1718989667984,3.60957206,3498.6,3497.8,0.55]
[1718989668297,3.60957206,3498.5,3497.8,3.40552317]
[1718989668498,3.60957206,3498.4,3497.8,3.40552317]
[1718989668698,3.60957206,3498.3,3497.8,3.40552317]
[1718989668893,3.60957206,3498.2,3497.8,3.40552317]
[1718989669101,1.53081599,3498.1,3497.9,0.56927932]
[1718989669289,3.0,3499.0,3498.0,0.55]
[1718989669488,3.60978128,3498.9,3498.0,0.55]
[1718989669689,6.60978128,3498.8,3497.9,0.55]
[1718989669908,1.03601759,3498.7,3497.9,0.55]
[1718989670119,3.60975209,3498.6,3497.9,1.062441]
[1718989670319,3.60975209,3498.5,3497.9,1.062441]
[1718989670599,3.60975209,3498.4,3497.9,1.062441]
[1718989670948,3.60975209,3498.3,3498.0,0.3349581]
[1718989671129,1.53096152,3498.2,3498.0,0.3349581]
[1718989671285,1.53096152,3498.1,3498.0,0.3349581]
[1718989671507,1.53096152,3498.1,3498.0,0.8849581]
[1718989672879,1.53094091,3498.1,3498.0,0.8849581]
[1718989673122,1.53094707,3498.1,3498.0,0.8849581]
[1718989674085,1.53095484,3498.1,3498.0,0.8849581]
[1718989675429,1.53095484,3498.1,3498.0,3.1719781]
[1718989675930,0.49491783,3498.1,3498.0,3.1719781]
[1718989676083,3.0,3499.0,3498.0,3.1719781]
[1718989676420,3.0,3499.0,3498.1,0.55]
[1718989676421,3.6094807,3498.9,3498.1,0.55]
[1718989676622,3.6094807,3498.8,3498.1,0.55]
[1718989676799,3.6094824,3498.7,3498.1,0.55]
[1718989676999,3.6094824,3498.6,3498.1,0.55]
[1718989677197,1.53086907,3498.5,3498.1,0.55]
[1718989677419,1.53086907,3498.4,3498.1,0.55]
[1718989677613,1.53086907,3498.3,3498.1,1.09591281]
[1718989677787,1.53086907,3498.2,3498.1,1.09591281]
[1718989677990,1.53086907,3498.2,3498.1,0.55]
[1718989678410,1.53086907,3498.2,3498.0,2.83701]
[1718989678610,3.0,3499.0,3498.0,2.83701]
[1718989678611,0.49490986,3498.1,3498.0,2.83701]
[1718989678841,3.0,3499.0,3498.0,2.83701]
[1718989678842,0.49491683,3498.9,3498.0,2.83701]
[1718989679012,3.60957269,3498.8,3498.0,2.83701]
[1718989679209,3.60957269,3498.7,3498.0,2.83701]
[1718989679536,3.60957269,3498.6,3498.0,2.83701]
[1718989679686,1.53093253,3498.5,3498.0,2.83701]
[1718989679888,1.53093253,3498.4,3498.0,2.83701]
[1718989680091,1.53093253,3498.3,3498.0,2.83701]
[1718989680298,1.44852785,3498.2,3498.0,0.55]
[1718989680615,1.44858688,3498.1,3497.7,2.83717]
[1718989680782,0.4949361,3498.0,3497.7,2.83717]
[1718989680987,0.51915739,3498.8,3497.7,3.594024]
[1718989681215,3.52333531,3498.7,3497.7,3.594024]
[1718989681496,3.52333531,3498.6,3498.0,2.287]
[1718989681732,3.52333531,3498.5,3498.1,0.55]
[1718989681991,1.44456844,3498.4,3498.1,0.55]
[1718989682194,2.015,3499.7,3498.1,2.83695]
[1718989682421,4.45563083,3501.6,3498.1,2.83695]
[1718989682422,3.2922398,3501.6,3501.4,2.2848]
[1718989682678,2.83571318,3504.2,3501.5,10.567]
[1718989682904,3.30759304,3505.8,3503.4,4.307]
[1718989682905,3.01319416,3505.8,3503.4,4.307]
[1718989683159,3.01319416,3505.8,3505.2,2.28228]
[1718989683160,5.47369501,3505.8,3505.2,2.28228]
[1718989683443,5.47369501,3505.8,3504.1,2.28299]
[1718989683444,2.46050085,3505.8,3504.4,2.015]
[1718989683647,0.81252313,3505.7,3503.7,3.0]
[1718989683837,4.77591535,3505.7,3503.5,0.55]
[1718989684067,4.77591535,3505.7,3503.5,3.0]
[1718989684326,1.14314,3507.1,3504.0,2.28307]
[1718989684587,1.14314,3507.1,3503.6,3.15796826]
[1718989684588,2.257,3507.7,3504.8,2.819]
[1718989684699,3.569,3506.9,3504.9,3.11199849]
[1718989685037,3.569,3506.9,3504.6,2.28266]
[1718989685038,2.819,3506.4,3504.6,2.28266]
[1718989685238,0.2819,3506.3,3504.6,2.28266]
[1718989685470,0.2819,3506.3,3504.4,3.0]
[1718989685644,0.2819,3506.3,3504.5,3.11228059]
[1718989685919,2.819,3505.9,3503.5,3.59438997]
[1718989686019,0.2819,3505.8,3503.6,13.09588928]
[1718989686242,2.4561,3505.3,3503.7,3.11262693]
[1718989686495,2.4561,3505.3,3503.8,3.11314815]
[1718989686697,0.52751,3505.2,3503.9,3.11324401]
[1718989686924,0.52751,3505.2,3503.7,2.28325]
[1718989687107,0.52751,3505.2,3503.8,3.11322041]
[1718989687351,3.52751,3505.2,3503.5,2.28339]
[1718989687657,2.819,3504.9,3502.9,2.28376]
[1718989687828,2.819,3504.9,3503.0,3.11368533]
[1718989687989,2.819,3504.4,3502.6,2.28397]
[1718989688221,2.819,3504.4,3501.7,2.28455]
[1718989688222,2.819,3503.9,3502.1,2.2843]
[1718989688439,2.819,3503.9,3502.2,2.28425]
[1718989688613,3.2819,3503.8,3502.2,2.28425]
[1718989689244,3.2819,3503.8,3502.4,2.28411]
[1718989689841,3.2819,3503.8,3502.5,2.28405]
[1718989690918,3.2819,3503.8,3502.3,2.28419]
[1718989691279,0.2819,3503.8,3503.4,2.28348]
[1718989691462,2.4477,3504.3,3503.4,2.28345]
[1718989691463,3.0,3504.2,3503.4,2.28345]
[1718989691805,2.4477,3504.3,3502.5,2.28404]
[1718989691806,2.4477,3504.3,3503.5,2.2834]
[1718989692009,2.4477,3504.3,3503.6,2.28333]
[1718989692213,0.24477,3504.2,3503.5,2.28338]
[1718989692540,0.24477,3504.2,3503.5,2.28342]
[1718989692713,0.24477,3504.2,3503.7,2.28329]
[1718989692928,0.24477,3504.2,3504.0,2.2831]
[1718989693249,0.2866,3506.8,3504.0,2.2831]
[1718989693250,9.009,3505.3,3504.5,2.28274]
[1718989693414,1.719,3505.7,3503.8,2.28323]
[1718989693665,0.41442,3505.6,3503.9,2.28315]
[1718989693882,2.4252,3505.8,3504.8,2.28252]
[1718989694168,2.4252,3505.8,3505.0,2.2824]
[1718989694482,4.1442,3505.8,3505.0,2.28243]
[1718989694667,4.1442,3505.8,3505.1,2.28236]
[1718989694879,0.41442,3505.7,3505.1,2.28236]
[1718989695026,0.41442,3505.7,3505.2,2.28227]
[1718989696069,3.41442,3505.7,3504.8,2.28254]
[1718989696252,3.41442,3505.7,3505.0,2.28241]
[1718989696464,0.755862,3505.6,3505.0,2.28241]
[1718989696766,0.755862,3505.6,3504.4,2.28279]